[Event "NJSK 2021 Meisjes A&B"]
[Site "Almelo, Netherlands"]
[Date "2021.08.03"]
[Round "3.4"]
[White "Cordes, Jule"]
[Black "Bertholee, Arjuna"]
[Result "1-0"]
[TimeControl "90min/40moves + 30sec/move"]
[WhiteElo "1790"]
[BlackElo "1144"]

1. d4 {[%clk 01:30:57]} {[%emt 00:00:02]} d5 {[%clk 01:30:54]} {[%emt
00:00:07]} 2. c4 {[%clk 01:31:20]} {[%emt 00:00:08]} e6 {[%clk 01:31:17]}
{[%emt 00:00:06]} 3. Nc3 {[%clk 01:31:40]} {[%emt 00:00:11]} Nf6 {[%clk
01:31:27]} {[%emt 00:00:20]} 4. Nf3 {[%clk 01:31:53]} {[%emt 00:00:17]} Nbd7
{[%clk 01:31:23]} {[%emt 00:00:33]} 5. Bg5 {[%clk 01:31:59]} {[%emt 00:00:23]}
c6 {[%clk 01:31:02]} {[%emt 00:00:51]} 6. e3 {[%clk 01:32:10]} {[%emt
00:00:20]} Qa5 {[%clk 01:30:31]} {[%emt 00:01:01]} 7. Nd2 {[%clk 01:26:46]}
{[%emt 00:05:54]} dxc4 {[%clk 01:29:55]} {[%emt 00:01:06]} 8. Bxf6 {[%clk
01:26:43]} {[%emt 00:00:33]} Nxf6 {[%clk 01:30:01]} {[%emt 00:00:23]} 9. Bxc4
{[%clk 01:23:42]} {[%emt 00:03:31]} Nd5 {[%clk 01:21:28]} {[%emt 00:09:03]} 10.
Qc2 {[%clk 01:16:15]} {[%emt 00:07:56]} Nxc3 {[%clk 01:15:02]} {[%emt
00:06:56]} 11. bxc3 {[%clk 01:15:27]} {[%emt 00:01:19]} Be7 {[%clk 01:09:50]}
{[%emt 00:05:43]} 12. O-O {[%clk 01:11:14]} {[%emt 00:04:43]} O-O {[%clk
01:07:27]} {[%emt 00:02:52]} 13. Nb3 {[%clk 01:03:15]} {[%emt 00:08:30]} Qc7
{[%clk 01:05:38]} {[%emt 00:02:18]} 14. Qe4 {[%clk 00:58:35]} {[%emt 00:05:10]}
Rd8 {[%clk 01:00:40]} {[%emt 00:05:27]} 15. Bd3 {[%clk 00:49:42]} {[%emt
00:09:24]} g6 {[%clk 00:58:33]} {[%emt 00:02:36]} 16. a4 {[%clk 00:42:39]}
{[%emt 00:07:34]} Bf6 {[%clk 00:51:31]} {[%emt 00:07:32]} 17. a5 {[%clk
00:38:43]} {[%emt 00:04:26]} Bd7 {[%clk 00:36:09]} {[%emt 00:15:52]} 18. Qf3
{[%clk 00:31:27]} {[%emt 00:07:45]} Bg7 {[%clk 00:31:16]} {[%emt 00:05:23]} 19.
Nc5 {[%clk 00:28:08]} {[%emt 00:03:50]} Be8 {[%clk 00:27:22]} {[%emt 00:04:24]}
20. Rfb1 {[%clk 00:18:53]} {[%emt 00:09:44]} Rab8 {[%clk 00:23:37]} {[%emt
00:04:15]} 21. Bc4 {[%clk 00:15:08]} {[%emt 00:04:16]} e5 {[%clk 00:17:57]}
{[%emt 00:06:10]} 22. Rb3 {[%clk 00:13:13]} {[%emt 00:02:25]} Qe7 {[%clk
00:13:56]} {[%emt 00:04:30]} 23. Rab1 {[%clk 00:12:09]} {[%emt 00:01:34]} b5
{[%clk 00:13:11]} {[%emt 00:01:15]} 24. axb6 {[%clk 00:10:10]} {[%emt
00:02:30]} axb6 {[%clk 00:12:56]} {[%emt 00:00:45]} 25. h3 {[%clk 00:07:37]}
{[%emt 00:03:03]} b5 {[%clk 00:08:27]} {[%emt 00:04:59]} 26. Qg4 {[%clk
00:05:53]} {[%emt 00:02:13]} Bd7 {[%clk 00:05:19]} {[%emt 00:03:39]} 27. Qd1
{[%clk 00:04:59]} {[%emt 00:01:24]} Qg5 {[%clk 00:03:56]} {[%emt 00:01:53]} 28.
Qf3 {[%clk 00:05:11]} {[%emt 00:00:18]} Qf6 {[%clk 00:03:41]} {[%emt 00:00:45]}
29. Qg3 {[%clk 00:04:19]} {[%emt 00:01:22]} Qd6 {[%clk 00:03:18]} {[%emt
00:00:53]} 30. Be2 {[%clk 00:04:12]} {[%emt 00:00:37]} Be6 {[%clk 00:03:18]}
{[%emt 00:00:30]} 31. Rb4 {[%clk 00:04:03]} {[%emt 00:00:39]} exd4 {[%clk
00:03:28]} {[%emt 00:00:21]} 32. Qxd6 {[%clk 00:00:59]} {[%emt 00:03:34]} Rxd6
{[%clk 00:03:51]} {[%emt 00:00:07]} 33. cxd4 {[%clk 00:00:43]} {[%emt
00:00:46]} Ra8 {[%clk 00:03:58]} {[%emt 00:00:23]} 34. Bf3 {[%clk 00:00:48]}
{[%emt 00:00:26]} f5 {[%clk 00:02:44]} {[%emt 00:01:43]} 35. Rxb5 {[%clk
00:00:44]} {[%emt 00:00:34]} cxb5 {[%clk 00:02:07]} {[%emt 00:01:06]} 36. Bxa8
{[%clk 00:01:13]} {[%emt 00:00:02]} Rb6 {[%clk 00:02:14]} {[%emt 00:00:23]} 37.
Nxe6 {[%clk 00:01:01]} {[%emt 00:00:42]} Rxe6 {[%clk 00:02:35]} {[%emt
00:00:09]} 38. Rxb5 {[%clk 00:01:26]} {[%emt 00:00:05]} Ra6 {[%clk 00:02:29]}
{[%emt 00:00:35]} 39. Bd5+ {[%clk 00:01:40]} {[%emt 00:00:16]} Kf8 {[%clk
00:02:43]} {[%emt 00:00:16]} 40. Rb7 {[%clk 00:01:27]} {[%emt 00:00:43]} Ra1+
{[%clk 00:02:41]} {[%emt 00:00:32]} 41. Kh2 {[%clk 00:01:51]} {[%emt 00:00:07]}
Rd1 {[%clk 00:00:57]} {[%emt 00:02:15]} 42. Rf7+ {[%clk 00:01:05]} {[%emt
00:01:15]} Kg8 {[%emt 00:00:40]} 43. Rxf5+ {[%clk 00:00:57]} {[%emt 00:00:19]}
Kh8 {[%clk 00:01:26]} {[%emt 00:00:09]} 44. Rf7 {[%clk 00:00:50]} {[%emt
00:00:37]} Rd2 {[%clk 00:00:45]} {[%emt 00:01:12]} 45. Kg3 {[%clk 00:00:47]}
{[%emt 00:00:32]} h5 {[%clk 00:00:40]} {[%emt 00:00:35]} 46. Be4 {[%clk
00:29:55]} {[%emt 00:01:22]} g5 {[%clk 00:30:46]} {[%emt 00:00:24]} 47. h4
{[%clk 00:29:44]} {[%emt 00:00:41]} Kg8 {[%clk 00:30:32]} {[%emt 00:00:44]} 48.
Rf5 {[%clk 00:26:41]} {[%emt 00:03:33]} gxh4+ {[%clk 00:30:43]} {[%emt
00:00:19]} 49. Kxh4 {[%clk 00:26:57]} {[%emt 00:00:15]} Kh8 {[%clk 00:30:44]}
{[%emt 00:00:28]} 50. Kxh5 {[%clk 00:26:54]} {[%emt 00:00:33]} Rd1 {[%clk
00:30:45]} {[%emt 00:00:29]} 51. Kg6 {[%clk 00:26:26]} {[%emt 00:00:57]} Rh1
{[%clk 00:30:47]} {[%emt 00:00:29]} 52. Ra5 {[%clk 00:18:38]} {[%emt 00:08:18]}
Rh6+ {[%clk 00:30:35]} {[%emt 00:00:41]} 53. Kf7 {[%clk 00:16:21]} {[%emt
00:02:44]} Rf6+ {[%clk 00:30:39]} {[%emt 00:00:29]} 54. Ke7 {[%clk 00:16:41]}
{[%emt 00:00:10]} Rxf2 {[%clk 00:30:49]} {[%emt 00:00:20]} 55. Ra8+ {[%clk
00:16:19]} {[%emt 00:00:52]} Bf8+ {[%clk 00:31:07]} {[%emt 00:00:12]} 56. Rxf8+
{[%clk 00:16:08]} {[%emt 00:00:41]} Rxf8 {[%clk 00:31:30]} {[%emt 00:00:07]} 57.
d5 {[%clk 00:15:17]} {[%emt 00:01:22]} Kg7 {[%clk 00:30:14]} {[%emt 00:01:46]}
58. g4 {[%clk 00:12:49]} {[%emt 00:02:57]} Rf7+ {[%clk 00:29:40]} {[%emt
00:01:04]} 59. Ke6 {[%clk 00:12:56]} {[%emt 00:00:23]} Rf6+ {[%clk 00:27:13]}
{[%emt 00:02:58]} 60. Ke5 {[%clk 00:13:07]} {[%emt 00:00:18]} Ra6 {[%clk
00:25:16]} {[%emt 00:02:27]} 61. Bf5 {[%clk 00:10:32]} {[%emt 00:03:05]} Kf7
{[%clk 00:23:58]} {[%emt 00:01:48]} 62. e4 {[%clk 00:10:46]} {[%emt 00:00:16]}
Ke7 {[%clk 00:23:18]} {[%emt 00:01:10]} 63. Be6 {[%clk 00:10:26]} {[%emt
00:00:50]} Rb6 {[%clk 00:21:37]} {[%emt 00:02:12]} 64. Bf5 {[%clk 00:07:13]}
{[%emt 00:03:41]} Ra6 {[%clk 00:18:07]} {[%emt 00:04:00]} 65. g5 {[%clk
00:05:42]} {[%emt 00:02:02]} Ra5 {[%clk 00:13:30]} {[%emt 00:05:07]} 66. g6
{[%clk 00:04:21]} {[%emt 00:01:51]} Kf8 {[%clk 00:12:39]} {[%emt 00:01:21]} 67.
Kf6 {[%clk 00:03:57]} {[%emt 00:00:54]} Ra6+ {[%clk 00:12:29]} {[%emt
00:00:40]} 68. Be6 {[%clk 00:04:14]} {[%emt 00:00:12]} Ra7 {[%clk 00:11:51]}
{[%emt 00:01:09]} 69. e5 {[%clk 00:02:02]} {[%emt 00:02:43]} Rf7+ {[%clk
00:11:07]} {[%emt 00:01:14]} 70. Kg5 {[%clk 00:02:25]} {[%emt 00:00:06]} Rf1
{[%clk 00:10:41]} {[%emt 00:00:56]} 71. Bf7 {[%clk 00:01:51]} {[%emt 00:01:04]}
Rg1+ {[%clk 00:10:18]} {[%emt 00:00:53]} 72. Kf6 {[%clk 00:01:37]} {[%emt
00:00:44]} Rf1+ {[%clk 00:10:19]} {[%emt 00:00:30]} 73. Ke6 {[%clk 00:01:45]}
{[%emt 00:00:21]} Rf6+ {[%clk 00:10:30]} {[%emt 00:00:19]} 74. Kd7 {[%clk
00:02:07]} {[%emt 00:00:08]} Ra6 {[%clk 00:10:01]} {[%emt 00:01:00]} 75. d6
{[%clk 00:01:54]} {[%emt 00:00:43]} Ra7+ {[%clk 00:09:41]} {[%emt 00:00:50]} 76.
Kc6 {[%clk 00:01:43]} {[%emt 00:00:41]} Ra8 {[%clk 00:08:28]} {[%emt 00:01:43]}
77. e6 {[%clk 00:01:48]} {[%emt 00:00:25]} Rc8+ {[%clk 00:07:58]} {[%emt
00:01:00]} 78. Kb7 {[%clk 00:01:36]} {[%emt 00:00:41]} Rc1 {[%clk 00:08:01]}
{[%emt 00:00:27]} 79. e7+ {[%clk 00:01:48]} {[%emt 00:00:18]} Kg7 {[%clk
00:08:18]} {[%emt 00:00:13]} 80. e8=Q {[%clk 00:02:04]} {[%emt 00:00:14]} Rg1
{[%clk 00:07:10]} {[%emt 00:01:39]} 81. Qe5 {[%clk 00:02:07]} {[%emt 00:00:27]}
Kh6 {[%clk 00:07:14]} {[%emt 00:00:26]} 82. Qh2+ {[%clk 00:02:19]} {[%emt
00:00:18]} Kg7 {[%clk 00:07:20]} {[%emt 00:00:23]} 83. Qxg1 {[%clk 00:02:41]}
{[%emt 00:00:08]} Kf8 {[%clk 00:07:35]} {[%emt 00:00:15]} 84. g7+ {[%clk
00:02:51]} {[%emt 00:00:20]} Kxf7 {[%clk 00:07:44]} {[%emt 00:00:21]} 85. g8=Q
{[%clk 00:03:15]} {[%emt 00:00:06]} Kf6 {[%clk 00:08:02]} {[%emt 00:00:13]} 86.
Q1g5+ {[%clk 00:03:36]} {[%emt 00:00:09]} 1-0

[Event "NJSK 2021 Meisjes A&B"]
[Site "Almelo, Netherlands"]
[Date "2021.08.03"]
[Round "3.5"]
[White "Venema, Katja"]
[Black "Basa, Manasvita"]
[Result "0-1"]
[TimeControl "90min/40moves + 30sec/move"]
[WhiteElo "1356"]
[BlackElo "1711"]

1. d4 {[%clk 01:30:55]} {[%emt 00:00:04]} d5 {[%clk 01:30:56]} {[%emt
00:00:04]} 2. c4 {[%clk 01:31:17]} {[%emt 00:00:08]} e6 {[%clk 01:31:22]}
{[%emt 00:00:04]} 3. Nc3 {[%clk 01:31:27]} {[%emt 00:00:19]} Be7 {[%clk
01:31:45]} {[%emt 00:00:07]} 4. Nf3 {[%clk 01:31:25]} {[%emt 00:00:32]} Nf6
{[%clk 01:32:06]} {[%emt 00:00:10]} 5. Bf4 {[%clk 01:31:01]} {[%emt 00:00:54]}
a6 {[%clk 01:30:51]} {[%emt 00:01:46]} 6. e3 {[%clk 01:30:28]} {[%emt
00:01:02]} O-O {[%clk 01:31:00]} {[%emt 00:00:21]} 7. Bd3 {[%clk 01:29:51]}
{[%emt 00:01:07]} dxc4 {[%clk 01:30:20]} {[%emt 00:01:10]} 8. Bxc4 {[%clk
01:29:43]} {[%emt 00:00:38]} b5 {[%clk 01:30:37]} {[%emt 00:00:13]} 9. Bd3
{[%clk 01:29:04]} {[%emt 00:01:09]} Bb7 {[%clk 01:30:26]} {[%emt 00:00:41]} 10.
O-O {[%clk 01:23:57]} {[%emt 00:05:37]} Nbd7 {[%clk 01:26:53]} {[%emt
00:04:03]} 11. Rc1 {[%clk 01:20:51]} {[%emt 00:03:36]} Nh5 {[%clk 01:17:19]}
{[%emt 00:10:04]} 12. Bg3 {[%clk 01:18:53]} {[%emt 00:02:28]} Nxg3 {[%clk
01:17:39]} {[%emt 00:00:10]} 13. fxg3 {[%clk 01:17:14]} {[%emt 00:02:09]} c5
{[%clk 01:17:48]} {[%emt 00:00:21]} 14. Be2 {[%clk 00:59:46]} {[%emt 00:17:58]}
Nf6 {[%clk 01:12:18]} {[%emt 00:06:00]} 15. Qd3 {[%clk 00:53:16]} {[%emt
00:07:00]} Qa5 {[%clk 01:02:36]} {[%emt 00:10:13]} 16. a3 {[%clk 00:44:42]}
{[%emt 00:09:03]} Rfd8 {[%clk 01:01:50]} {[%emt 00:01:16]} 17. Qc2 {[%clk
00:39:58]} {[%emt 00:05:14]} Rac8 {[%clk 00:58:31]} {[%emt 00:03:49]} 18. Rfd1
{[%clk 00:32:53]} {[%emt 00:07:35]} h6 {[%clk 00:19:15]} {[%emt 00:39:46]} 19.
Qb3 {[%clk 00:28:06]} {[%emt 00:05:17]} Ng4 {[%clk 00:16:55]} {[%emt 00:02:50]}
20. Re1 {[%clk 00:15:34]} {[%emt 00:13:01]} c4 {[%clk 00:15:51]} {[%emt
00:01:36]} 21. Qa2 {[%clk 00:13:38]} {[%emt 00:02:26]} Nxe3 {[%clk 00:16:03]}
{[%emt 00:00:17]} 22. Qb1 {[%clk 00:11:42]} {[%emt 00:02:26]} Nf5 {[%clk
00:15:25]} {[%emt 00:01:08]} 23. Rcd1 {[%clk 00:11:32]} {[%emt 00:00:41]} Qb6
{[%clk 00:15:43]} {[%emt 00:00:12]} 24. Kh1 {[%clk 00:10:23]} {[%emt 00:01:38]}
Nxd4 {[%clk 00:15:56]} {[%emt 00:00:17]} 25. Nxd4 {[%clk 00:09:38]} {[%emt
00:01:16]} Rxd4 {[%clk 00:16:17]} {[%emt 00:00:08]} 26. a4 {[%clk 00:09:23]}
{[%emt 00:00:45]} b4 {[%clk 00:14:05]} {[%emt 00:02:43]} 27. Na2 {[%clk
00:08:32]} {[%emt 00:01:21]} Rxd1 {[%clk 00:10:45]} {[%emt 00:03:49]} 28. Qxd1
{[%clk 00:08:14]} {[%emt 00:00:48]} Rd8 {[%clk 00:09:54]} {[%emt 00:01:22]} 29.
Qc1 {[%clk 00:08:07]} {[%emt 00:00:37]} Qf2 {[%clk 00:10:13]} {[%emt 00:00:10]}
30. Bf1 {[%clk 00:06:03]} {[%emt 00:02:34]} Bc5 {[%clk 00:10:32]} {[%emt
00:00:12]} 31. Rd1 {[%clk 00:05:55]} {[%emt 00:00:38]} Qg1# {[%clk 00:10:53]}
{[%emt 00:00:08]} 0-1

[Event "NJSK 2021 Meisjes A&B"]
[Site "Almelo, Netherlands"]
[Date "2021.08.03"]
[Round "3.6"]
[White "Van Essen, Marieke"]
[Black "Martinez, Sara"]
[Result "1-0"]
[TimeControl "90min/40moves + 30sec/move"]
[WhiteElo "1610"]
[BlackElo "1528"]

1. e4 {[%clk 01:30:58]} {[%emt 00:00:01]} e6 {[%clk 01:30:55]} {[%emt
00:00:06]} 2. d4 {[%clk 01:31:25]} {[%emt 00:00:03]} d5 {[%clk 01:31:18]}
{[%emt 00:00:07]} 3. Nc3 {[%clk 01:31:50]} {[%emt 00:00:05]} Bb4 {[%clk
01:31:42]} {[%emt 00:00:06]} 4. Bd3 {[%clk 01:31:56]} {[%emt 00:00:23]} c5
{[%clk 01:31:32]} {[%emt 00:00:41]} 5. dxc5 {[%clk 01:31:48]} {[%emt 00:00:38]}
Bxc5 {[%clk 01:31:53]} {[%emt 00:00:08]} 6. exd5 {[%clk 01:31:36]} {[%emt
00:00:42]} Nf6 {[%clk 01:29:04]} {[%emt 00:03:20]} 7. Bb5+ {[%clk 01:29:21]}
{[%emt 00:02:45]} Bd7 {[%clk 01:22:36]} {[%emt 00:06:58]} 8. Bxd7+ {[%clk
01:21:16]} {[%emt 00:08:34]} Qxd7 {[%clk 01:19:22]} {[%emt 00:03:45]} 9. dxe6
{[%clk 01:18:02]} {[%emt 00:03:44]} Qxe6+ {[%clk 01:18:51]} {[%emt 00:01:01]}
10. Qe2 {[%clk 01:13:24]} {[%emt 00:05:07]} O-O {[%clk 01:15:52]} {[%emt
00:03:30]} 11. Qxe6 {[%clk 01:11:34]} {[%emt 00:02:20]} fxe6 {[%clk 01:16:15]}
{[%emt 00:00:06]} 12. f3 {[%clk 01:08:08]} {[%emt 00:03:57]} Nc6 {[%clk
01:15:48]} {[%emt 00:00:57]} 13. Bd2 {[%clk 01:07:11]} {[%emt 00:01:26]} Nb4
{[%clk 01:11:28]} {[%emt 00:04:51]} 14. O-O-O {[%clk 01:04:44]} {[%emt
00:02:57]} Rfc8 {[%clk 01:02:49]} {[%emt 00:09:10]} 15. Nge2 {[%clk 01:00:03]}
{[%emt 00:05:11]} a5 {[%clk 00:53:31]} {[%emt 00:09:48]} 16. g4 {[%clk
00:55:17]} {[%emt 00:05:15]} a4 {[%clk 00:48:05]} {[%emt 00:05:57]} 17. a3
{[%clk 00:50:51]} {[%emt 00:04:56]} Nbd5 {[%clk 00:42:56]} {[%emt 00:05:39]} 18.
g5 {[%clk 00:41:44]} {[%emt 00:09:37]} Nxc3 {[%clk 00:39:28]} {[%emt 00:03:59]}
19. Nxc3 {[%clk 00:41:40]} {[%emt 00:00:33]} Nd7 {[%clk 00:38:35]} {[%emt
00:01:24]} 20. Rhe1 {[%clk 00:35:35]} {[%emt 00:06:35]} Rc6 {[%clk 00:34:04]}
{[%emt 00:05:02]} 21. Bf4 {[%clk 00:29:25]} {[%emt 00:06:39]} Nb6 {[%clk
00:31:10]} {[%emt 00:03:25]} 22. Ne4 {[%clk 00:26:40]} {[%emt 00:03:14]} Be7
{[%clk 00:28:40]} {[%emt 00:03:00]} 23. Bd6 {[%clk 00:26:16]} {[%emt 00:00:54]}
Bxd6 {[%clk 00:15:50]} {[%emt 00:13:20]} 24. Nxd6 {[%clk 00:23:32]} {[%emt
00:03:15]} Nd5 {[%clk 00:13:24]} {[%emt 00:02:55]} 25. Rxe6 {[%clk 00:21:43]}
{[%emt 00:02:18]} Nf4 {[%clk 00:12:52]} {[%emt 00:01:03]} 26. Re4 {[%clk
00:16:50]} {[%emt 00:05:23]} Ng6 {[%clk 00:12:02]} {[%emt 00:01:19]} 27. Nxb7
{[%clk 00:16:24]} {[%emt 00:00:56]} Rac8 {[%clk 00:11:22]} {[%emt 00:01:10]} 28.
Rd8+ {[%clk 00:15:51]} {[%emt 00:01:03]} Rxd8 {[%clk 00:10:09]} {[%emt
00:01:43]} 29. Nxd8 {[%clk 00:16:12]} {[%emt 00:00:09]} Rd6 {[%clk 00:09:49]}
{[%emt 00:00:49]} 30. Ne6 {[%clk 00:14:06]} {[%emt 00:02:36]} Kf7 {[%clk
00:08:27]} {[%emt 00:01:52]} 31. Nf4 {[%clk 00:12:42]} {[%emt 00:01:54]} Nh4
{[%clk 00:07:29]} {[%emt 00:01:28]} 32. Nd3 {[%clk 00:12:15]} {[%emt 00:00:56]}
Nf5 {[%clk 00:06:50]} {[%emt 00:01:09]} 33. Nc5 {[%clk 00:10:58]} {[%emt
00:01:47]} Kg6 {[%clk 00:04:05]} {[%emt 00:03:16]} 34. Re6+ {[%clk 00:04:25]}
{[%emt 00:07:03]} Rxe6 {[%clk 00:03:56]} {[%emt 00:00:39]} 35. Nxe6 {[%clk
00:04:49]} {[%emt 00:00:07]} Ne3 {[%clk 00:04:01]} {[%emt 00:00:25]} 36. b3
{[%clk 00:04:14]} {[%emt 00:01:05]} Kf5 {[%clk 00:03:00]} {[%emt 00:01:30]} 37.
Nxg7+ {[%clk 00:03:08]} {[%emt 00:01:35]} Kxg5 {[%clk 00:03:22]} {[%emt
00:00:08]} 38. Ne6+ {[%clk 00:02:45]} {[%emt 00:00:53]} Kf5 {[%clk 00:03:23]}
{[%emt 00:00:29]} 39. Nd4+ {[%clk 00:02:37]} {[%emt 00:00:38]} Ke5 {[%clk
00:03:16]} {[%emt 00:00:37]} 40. Ne2 {[%clk 00:01:48]} {[%emt 00:01:19]} Nf1
{[%clk 00:03:20]} {[%emt 00:00:26]} 41. h4 {[%clk 00:01:29]} {[%emt 00:00:48]}
Ne3 {[%clk 00:03:22]} {[%emt 00:00:29]} 42. Kd2 {[%clk 00:00:54]} {[%emt
00:01:04]} Nf5 {[%clk 00:03:12]} {[%emt 00:00:41]} 43. h5 {[%clk 00:28:27]}
{[%emt 00:02:57]} Ng7 {[%clk 00:32:35]} {[%emt 00:01:07]} 44. Ng3 {[%clk
00:28:23]} {[%emt 00:00:34]} Kf4 {[%clk 00:32:36]} {[%emt 00:00:29]} 45. h6
{[%clk 00:28:27]} {[%emt 00:00:26]} Ne6 {[%clk 00:32:45]} {[%emt 00:00:21]} 46.
Ne4 {[%clk 00:26:52]} {[%emt 00:02:05]} Kxf3 {[%clk 00:30:41]} {[%emt
00:02:34]} 47. Nf6 {[%clk 00:26:25]} {[%emt 00:00:57]} Kf4 {[%clk 00:28:42]}
{[%emt 00:02:30]} 48. bxa4 {[%clk 00:22:37]} {[%emt 00:04:18]} Kg5 {[%clk
00:26:10]} {[%emt 00:03:02]} 49. Nxh7+ {[%clk 00:21:20]} {[%emt 00:01:47]} Kg6
{[%clk 00:25:58]} {[%emt 00:00:43]} 50. Kc3 {[%clk 00:19:41]} {[%emt 00:02:10]}
Kxh7 {[%clk 00:26:12]} {[%emt 00:00:16]} 51. Kc4 {[%clk 00:19:41]} {[%emt
00:00:30]} Kxh6 {[%clk 00:26:17]} {[%emt 00:00:25]} 52. Kd5 {[%clk 00:19:25]}
{[%emt 00:00:46]} Nc7+ {[%clk 00:25:28]} {[%emt 00:01:19]} 53. Kc6 {[%clk
00:19:33]} {[%emt 00:00:22]} Na6 {[%clk 00:25:27]} {[%emt 00:00:30]} 54. Kb6
{[%clk 00:19:04]} {[%emt 00:00:59]} Nb8 {[%clk 00:25:45]} {[%emt 00:00:12]} 55.
a5 {[%clk 00:18:43]} {[%emt 00:00:51]} Kg6 {[%clk 00:25:47]} {[%emt 00:00:29]}
56. a6 {[%clk 00:18:15]} {[%emt 00:00:58]} 1-0

[Event "NJSK 2021 Meisjes A&B"]
[Site "Almelo, Netherlands"]
[Date "2021.08.03"]
[Round "3.7"]
[White "Duson, Stella"]
[Black "Bogouslavskii, Veronique"]
[Result "0-1"]
[TimeControl "90min/40moves + 30sec/move"]
[WhiteElo "1259"]
[BlackElo "1207"]

1. e4 {[%clk 01:30:57]} {[%emt 00:00:03]} c5 {[%clk 01:30:56]} {[%emt
00:00:04]} 2. Nf3 {[%clk 01:31:02]} {[%emt 00:00:25]} e6 {[%clk 01:31:10]}
{[%emt 00:00:15]} 3. Nc3 {[%clk 01:30:15]} {[%emt 00:01:17]} d6 {[%clk
01:31:26]} {[%emt 00:00:15]} 4. d4 {[%clk 01:27:17]} {[%emt 00:03:27]} cxd4
{[%clk 01:30:01]} {[%emt 00:01:55]} 5. Nxd4 {[%clk 01:26:50]} {[%emt 00:00:57]}
Nf6 {[%clk 01:28:50]} {[%emt 00:01:41]} 6. Bd3 {[%clk 01:23:12]} {[%emt
00:04:09]} Be7 {[%clk 01:25:28]} {[%emt 00:03:52]} 7. O-O {[%clk 01:17:55]}
{[%emt 00:02:41]} O-O {[%clk 01:25:08]} {[%emt 00:03:55]} 8. Re1 {[%clk
01:14:20]} {[%emt 00:04:04]} Re8 {[%clk 01:10:23]} {[%emt 00:15:16]} 9. Nce2
{[%clk 01:05:47]} {[%emt 00:09:04]} a6 {[%clk 01:01:26]} {[%emt 00:09:28]} 10.
Ng3 {[%clk 01:01:16]} {[%emt 00:05:00]} Qb6 {[%clk 00:51:17]} {[%emt 00:10:39]}
11. c3 {[%clk 00:54:31]} {[%emt 00:07:16]} Nc6 {[%clk 00:49:33]} {[%emt
00:02:14]} 12. Nf3 {[%clk 00:51:01]} {[%emt 00:03:59]} Ng4 {[%clk 00:45:44]}
{[%emt 00:04:20]} 13. Qe2 {[%clk 00:47:22]} {[%emt 00:04:08]} Bd7 {[%clk
00:35:29]} {[%emt 00:10:46]} 14. h3 {[%clk 00:43:40]} {[%emt 00:04:11]} Nge5
{[%clk 00:35:13]} {[%emt 00:00:47]} 15. Be3 {[%clk 00:38:42]} {[%emt 00:05:28]}
Qc7 {[%clk 00:34:52]} {[%emt 00:00:51]} 16. Nd4 {[%clk 00:36:27]} {[%emt
00:02:44]} Nxd3 {[%clk 00:33:34]} {[%emt 00:01:48]} 17. Qxd3 {[%clk 00:35:09]}
{[%emt 00:01:48]} Bf6 {[%clk 00:33:08]} {[%emt 00:00:56]} 18. Rac1 {[%clk
00:33:21]} {[%emt 00:02:18]} Ne5 {[%clk 00:31:45]} {[%emt 00:01:54]} 19. Qe2
{[%clk 00:30:10]} {[%emt 00:03:40]} Nc4 {[%clk 00:29:54]} {[%emt 00:02:22]} 20.
b3 {[%clk 00:26:55]} {[%emt 00:03:44]} Nxe3 {[%clk 00:29:19]} {[%emt 00:01:04]}
21. Qxe3 {[%clk 00:26:36]} {[%emt 00:00:51]} g6 {[%clk 00:27:29]} {[%emt
00:02:20]} 22. Nf3 {[%clk 00:21:55]} {[%emt 00:05:10]} e5 {[%clk 00:19:18]}
{[%emt 00:08:42]} 23. c4 {[%clk 00:18:33]} {[%emt 00:03:52]} Qa5 {[%clk
00:18:03]} {[%emt 00:01:43]} 24. Re2 {[%clk 00:16:59]} {[%emt 00:02:05]} Bd8
{[%clk 00:16:38]} {[%emt 00:01:56]} 25. Qd2 {[%clk 00:16:50]} {[%emt 00:00:38]}
Qa3 {[%clk 00:15:48]} {[%emt 00:01:21]} 26. Rd1 {[%clk 00:14:50]} {[%emt
00:02:30]} Bc7 {[%clk 00:12:25]} {[%emt 00:03:53]} 27. Qb2 {[%clk 00:13:49]}
{[%emt 00:01:31]} Qxb2 {[%clk 00:11:58]} {[%emt 00:00:58]} 28. Rxb2 {[%clk
00:14:14]} {[%emt 00:00:04]} Red8 {[%clk 00:11:34]} {[%emt 00:00:54]} 29. Rbd2
{[%clk 00:13:33]} {[%emt 00:01:08]} Bc6 {[%clk 00:11:02]} {[%emt 00:01:05]} 30.
a4 {[%clk 00:11:39]} {[%emt 00:02:24]} Kf8 {[%clk 00:10:56]} {[%emt 00:00:36]}
31. Kf1 {[%clk 00:11:30]} {[%emt 00:00:39]} Ke7 {[%clk 00:11:19]} {[%emt
00:00:07]} 32. Re2 {[%clk 00:11:01]} {[%emt 00:00:58]} h6 {[%clk 00:10:47]}
{[%emt 00:01:02]} 33. Nd2 {[%clk 00:10:11]} {[%emt 00:01:21]} Ba5 {[%clk
00:10:55]} {[%emt 00:00:21]} 34. Nb1 {[%clk 00:10:23]} {[%emt 00:00:17]} b5
{[%clk 00:10:43]} {[%emt 00:00:43]} 35. Ra2 {[%clk 00:09:04]} {[%emt 00:01:49]}
bxc4 {[%clk 00:10:51]} {[%emt 00:00:22]} 36. bxc4 {[%clk 00:09:18]} {[%emt
00:00:16]} Rab8 {[%clk 00:11:14]} {[%emt 00:00:07]} 37. Ne2 {[%clk 00:08:31]}
{[%emt 00:01:16]} Bxe4 {[%clk 00:11:20]} {[%emt 00:00:25]} 38. Nbc3 {[%clk
00:08:25]} {[%emt 00:00:37]} Bc6 {[%clk 00:10:32]} {[%emt 00:01:18]} 39. f4
{[%clk 00:07:09]} {[%emt 00:01:45]} Bxc3 {[%clk 00:08:02]} {[%emt 00:03:01]} 40.
Nxc3 {[%clk 00:07:17]} {[%emt 00:00:21]} exf4 {[%clk 00:08:11]} {[%emt
00:00:22]} 41. Nd5+ {[%clk 00:06:56]} {[%emt 00:00:51]} Bxd5 {[%clk 00:08:02]}
{[%emt 00:00:38]} 42. Rxd5 {[%clk 00:06:52]} {[%emt 00:00:34]} Rb4 {[%clk
00:07:51]} {[%emt 00:00:41]} 43. Re2+ {[%clk 00:06:44]} {[%emt 00:00:39]} Kf8
{[%clk 00:06:46]} {[%emt 00:01:35]} 44. c5 {[%clk 00:07:06]} {[%emt 00:00:08]}
Rxa4 {[%clk 00:26:33]} {[%emt 00:10:43]} 45. cxd6 {[%clk 00:37:19]} {[%emt
00:00:17]} Rc4 {[%clk 00:25:15]} {[%emt 00:01:48]} 46. d7 {[%clk 00:26:48]}
{[%emt 00:11:01]} Rc7 {[%clk 00:25:13]} {[%emt 00:00:32]} 47. Kf2 {[%clk
00:25:47]} {[%emt 00:01:32]} Rcxd7 {[%clk 00:25:29]} {[%emt 00:00:14]} 48. Rxd7
{[%clk 00:26:04]} {[%emt 00:00:12]} Rxd7 {[%clk 00:25:58]} {[%emt 00:00:01]} 49.
Kf3 {[%clk 00:26:19]} {[%emt 00:00:15]} g5 {[%clk 00:26:17]} {[%emt 00:00:12]}
50. Kg4 {[%clk 00:26:25]} {[%emt 00:00:24]} 0-1